{"text_format":"1","workbook":"xlsx","n_sheets":1,"sheets":["Employee Schedule"],"not_rendered":{"charts":0,"images":2,"macros":0,"external_links":0,"defined_names":0,"comments":0,"pivot_tables":0},"unopened":[],"bounds":{"document_bytes":16777216,"sheet_cells":100000,"rows_first":2000,"rows_last":500,"rows_between":2000,"halvings":0,"cell_chars":16384,"cell_head_chars":4096},"cells_cut":0,"cells_raw":0,"read":"whole","date_system":"1900"}

{"sheet":"Employee Schedule","index":0,"n_rows":81,"n_cols":18,"rows_kept":81,"cut":false,"hidden":false,"merged":[[1,7,1,9],[1,1,1,2],[80,1,80,17]]}
[null,"EMPLOYEE SCHEDULE TEMPLATE"]
[null,"WEEK BEGINNING:",null,"2019-07-01",null,null,"DEPT:","Bakery"]
[]
[null,"MON",{"$f":"D2","v":"2019-07-01"}]
[null,"ID NO.","EMPLOYEE NAME","7:00 AM","8:00 AM","9:00 AM","10:00 AM","11:00 AM","12:00 PM","1:00 PM","2:00 PM","3:00 PM","4:00 PM","5:00 PM","6:00 PM","7:00 PM","– OFF –","TOTAL"]
[null,100012,"Kelly B.","Pastries","Pastries","Pastries","Pastries","Pastries","Pastries",null,null,null,null,null,null,null,null,{"$f":"COUNTIF(MON[[#This Row],[7:00 AM]:[7:00 PM]],\"*\")","v":6}]
[null,100045,"Cindy Y.","Cakes","Cakes","Cakes","Cakes","Cakes","Cakes",null,null,null,null,null,null,null,null,{"$f":"COUNTIF(MON[[#This Row],[7:00 AM]:[7:00 PM]],\"*\")","v":6}]
[null,100007,"Nathan M.",null,null,null,"Pies","Pies","Pies","Pies","Pies","Pies",null,null,null,null,null,{"$f":"COUNTIF(MON[[#This Row],[7:00 AM]:[7:00 PM]],\"*\")","v":6}]
[null,100036,"Jenn C.",null,null,null,null,null,null,"Decoration","Decoration","Decoration","Decoration","Decoration","Decoration",null,null,{"$f":"COUNTIF(MON[[#This Row],[7:00 AM]:[7:00 PM]],\"*\")","v":6}]
[null,100002,"Daniel H.",null,null,"Manager","Manager","Manager","Manager","Manager","Manager","Manager","Manager",null,null,null,null,{"$f":"COUNTIF(MON[[#This Row],[7:00 AM]:[7:00 PM]],\"*\")","v":8}]
[null,100089,"Lucas J.","Bread","Bread","Bread","Bread",null,null,null,null,null,null,null,null,null,null,{"$f":"COUNTIF(MON[[#This Row],[7:00 AM]:[7:00 PM]],\"*\")","v":4}]
[null,100046,"Steve J.",null,null,null,null,"Front of store","Front of store","Front of store","Front of store","Front of store","Front of Store","Front of Store","Front of Store","Front of Store",null,{"$f":"COUNTIF(MON[[#This Row],[7:00 AM]:[7:00 PM]],\"*\")","v":9}]
[null,100055,"Laurie O.","Front of store","Front of store","Front of store","Front of store","Front of store","Front of Store","Front of Store","Front of Store","Front of Store",null,null,null,null,null,{"$f":"COUNTIF(MON[[#This Row],[7:00 AM]:[7:00 PM]],\"*\")","v":9}]
[]
[null,"TUES",{"$f":"D2+1","v":"2019-07-02"}]
[null,"ID NO.","EMPLOYEE NAME","7:00 AM","8:00 AM","9:00 AM","10:00 AM","11:00 AM","12:00 PM","1:00 PM","2:00 PM","3:00 PM","4:00 PM","5:00 PM","6:00 PM","7:00 PM","– OFF –","TOTAL"]
[null,100012,"Kelly B.","Pastries","Pastries","Pastries","Pastries","Pastries","Pastries",null,null,null,null,null,null,null,null,{"$f":"COUNTIF(MON_3[[#This Row],[7:00 AM]:[7:00 PM]],\"*\")","v":6}]
[null,100045,"Cindy Y.","Cakes","Cakes","Cakes","Cakes","Cakes","Cakes",null,null,null,null,null,null,null,null,{"$f":"COUNTIF(MON_3[[#This Row],[7:00 AM]:[7:00 PM]],\"*\")","v":6}]
[null,100007,"Nathan M.",null,null,null,"Pies","Pies","Pies","Pies","Pies","Pies",null,null,null,null,null,{"$f":"COUNTIF(MON_3[[#This Row],[7:00 AM]:[7:00 PM]],\"*\")","v":6}]
[null,100036,"Jenn C.",null,null,null,null,null,null,"Decoration","Decoration","Decoration","Decoration","Decoration","Decoration",null,null,{"$f":"COUNTIF(MON_3[[#This Row],[7:00 AM]:[7:00 PM]],\"*\")","v":6}]
[null,100002,"Daniel H.",null,null,"Manager","Manager","Manager","Manager","Manager","Manager","Manager","Manager",null,null,null,null,{"$f":"COUNTIF(MON_3[[#This Row],[7:00 AM]:[7:00 PM]],\"*\")","v":8}]
[null,100089,"Lucas J.","Bread","Bread","Bread","Bread",null,null,null,null,null,null,null,null,null,null,{"$f":"COUNTIF(MON_3[[#This Row],[7:00 AM]:[7:00 PM]],\"*\")","v":4}]
[null,100046,"Steve J.",null,null,null,null,"Front of store","Front of store","Front of store","Front of store","Front of store","Front of Store","Front of Store","Front of Store","Front of Store",null,{"$f":"COUNTIF(MON_3[[#This Row],[7:00 AM]:[7:00 PM]],\"*\")","v":9}]
[null,100055,"Laurie O.","Front of store","Front of store","Front of store","Front of store","Front of store","Front of Store","Front of Store","Front of Store","Front of Store",null,null,null,null,null,{"$f":"COUNTIF(MON_3[[#This Row],[7:00 AM]:[7:00 PM]],\"*\")","v":9}]
[]
[null,"WED",{"$f":"C15+1","v":"2019-07-03"}]
[null,"ID NO.","EMPLOYEE NAME","7:00 AM","8:00 AM","9:00 AM","10:00 AM","11:00 AM","12:00 PM","1:00 PM","2:00 PM","3:00 PM","4:00 PM","5:00 PM","6:00 PM","7:00 PM","– OFF –","TOTAL"]
[null,100012,"Kelly B.","Pastries","Pastries","Pastries","Pastries","Pastries","Pastries",null,null,null,null,null,null,null,null,{"$f":"COUNTIF(MON_4[[#This Row],[7:00 AM]:[7:00 PM]],\"*\")","v":6}]
[null,100045,"Cindy Y.","Cakes","Cakes","Cakes","Cakes","Cakes","Cakes",null,null,null,null,null,null,null,null,{"$f":"COUNTIF(MON_4[[#This Row],[7:00 AM]:[7:00 PM]],\"*\")","v":6}]
[null,100007,"Nathan M.",null,null,null,"Pies","Pies","Pies","Pies","Pies","Pies",null,null,null,null,null,{"$f":"COUNTIF(MON_4[[#This Row],[7:00 AM]:[7:00 PM]],\"*\")","v":6}]
[null,100036,"Jenn C.",null,null,null,null,null,null,"Decoration","Decoration","Decoration","Decoration","Decoration","Decoration",null,null,{"$f":"COUNTIF(MON_4[[#This Row],[7:00 AM]:[7:00 PM]],\"*\")","v":6}]
[null,100002,"Daniel H.",null,null,"Manager","Manager","Manager","Manager","Manager","Manager","Manager","Manager",null,null,null,null,{"$f":"COUNTIF(MON_4[[#This Row],[7:00 AM]:[7:00 PM]],\"*\")","v":8}]
[null,100089,"Lucas J.","Bread","Bread","Bread","Bread",null,null,null,null,null,null,null,null,null,null,{"$f":"COUNTIF(MON_4[[#This Row],[7:00 AM]:[7:00 PM]],\"*\")","v":4}]
[null,100046,"Steve J.",null,null,null,null,"Front of store","Front of store","Front of store","Front of store","Front of store","Front of Store","Front of Store","Front of Store","Front of Store",null,{"$f":"COUNTIF(MON_4[[#This Row],[7:00 AM]:[7:00 PM]],\"*\")","v":9}]
[null,100055,"Laurie O.","Front of store","Front of store","Front of store","Front of store","Front of store","Front of Store","Front of Store","Front of Store","Front of Store",null,null,null,null,null,{"$f":"COUNTIF(MON_4[[#This Row],[7:00 AM]:[7:00 PM]],\"*\")","v":9}]
[]
[null,"THURS",{"$f":"C26+1","v":"2019-07-04"}]
[null,"ID NO.","EMPLOYEE NAME","7:00 AM","8:00 AM","9:00 AM","10:00 AM","11:00 AM","12:00 PM","1:00 PM","2:00 PM","3:00 PM","4:00 PM","5:00 PM","6:00 PM","7:00 PM","– OFF –","TOTAL"]
[null,100012,"Kelly B.","Pastries","Pastries","Pastries","Pastries","Pastries","Pastries",null,null,null,null,null,null,null,null,{"$f":"COUNTIF(MON_5[[#This Row],[7:00 AM]:[7:00 PM]],\"*\")","v":6}]
[null,100045,"Cindy Y.","Cakes","Cakes","Cakes","Cakes","Cakes","Cakes",null,null,null,null,null,null,null,null,{"$f":"COUNTIF(MON_5[[#This Row],[7:00 AM]:[7:00 PM]],\"*\")","v":6}]
[null,100007,"Nathan M.",null,null,null,"Pies","Pies","Pies","Pies","Pies","Pies",null,null,null,null,null,{"$f":"COUNTIF(MON_5[[#This Row],[7:00 AM]:[7:00 PM]],\"*\")","v":6}]
[null,100036,"Jenn C.",null,null,null,null,null,null,"Decoration","Decoration","Decoration","Decoration","Decoration","Decoration",null,null,{"$f":"COUNTIF(MON_5[[#This Row],[7:00 AM]:[7:00 PM]],\"*\")","v":6}]
[null,100002,"Daniel H.",null,null,"Manager","Manager","Manager","Manager","Manager","Manager","Manager","Manager",null,null,null,null,{"$f":"COUNTIF(MON_5[[#This Row],[7:00 AM]:[7:00 PM]],\"*\")","v":8}]
[null,100089,"Lucas J.","Bread","Bread","Bread","Bread",null,null,null,null,null,null,null,null,null,null,{"$f":"COUNTIF(MON_5[[#This Row],[7:00 AM]:[7:00 PM]],\"*\")","v":4}]
[null,100046,"Steve J.",null,null,null,null,"Front of store","Front of store","Front of store","Front of store","Front of store","Front of Store","Front of Store","Front of Store","Front of Store",null,{"$f":"COUNTIF(MON_5[[#This Row],[7:00 AM]:[7:00 PM]],\"*\")","v":9}]
[null,100055,"Laurie O.","Front of store","Front of store","Front of store","Front of store","Front of store","Front of Store","Front of Store","Front of Store","Front of Store",null,null,null,null,null,{"$f":"COUNTIF(MON_5[[#This Row],[7:00 AM]:[7:00 PM]],\"*\")","v":9}]
[]
[null,"FRI",{"$f":"C37+1","v":"2019-07-05"}]
[null,"ID NO.","EMPLOYEE NAME","7:00 AM","8:00 AM","9:00 AM","10:00 AM","11:00 AM","12:00 PM","1:00 PM","2:00 PM","3:00 PM","4:00 PM","5:00 PM","6:00 PM","7:00 PM","– OFF –","TOTAL"]
[null,100012,"Kelly B.","Pastries","Pastries","Pastries",null,null,null,null,null,null,null,null,null,null,null,{"$f":"COUNTIF(MON_6[[#This Row],[7:00 AM]:[7:00 PM]],\"*\")","v":3}]
[null,100045,"Cindy Y.","Cakes","Cakes","Cakes",null,null,null,null,null,null,null,null,null,null,null,{"$f":"COUNTIF(MON_6[[#This Row],[7:00 AM]:[7:00 PM]],\"*\")","v":3}]
[null,100007,"Nathan M.",null,null,null,"Pies","Pies","Pies","Pies","Pies","Pies",null,null,null,null,null,{"$f":"COUNTIF(MON_6[[#This Row],[7:00 AM]:[7:00 PM]],\"*\")","v":6}]
[null,100036,"Jenn C.",null,null,null,null,null,null,"Decoration","Decoration","Decoration","Decoration","Decoration","Decoration",null,null,{"$f":"COUNTIF(MON_6[[#This Row],[7:00 AM]:[7:00 PM]],\"*\")","v":6}]
[null,100002,"Daniel H.",null,null,"Manager","Manager","Manager","Manager","Manager","Manager","Manager","Manager",null,null,null,null,{"$f":"COUNTIF(MON_6[[#This Row],[7:00 AM]:[7:00 PM]],\"*\")","v":8}]
[null,100089,"Lucas J.","Bread","Bread","Bread","Bread",null,null,null,null,null,null,null,null,null,null,{"$f":"COUNTIF(MON_6[[#This Row],[7:00 AM]:[7:00 PM]],\"*\")","v":4}]
[null,100046,"Steve J.",null,null,null,null,"Front of store","Front of store","Front of store","Front of store","Front of store","Front of Store","Front of Store","Front of Store","Front of Store",null,{"$f":"COUNTIF(MON_6[[#This Row],[7:00 AM]:[7:00 PM]],\"*\")","v":9}]
[null,100055,"Laurie O.","Front of store","Front of store","Front of store","Front of store","Front of store","Front of Store","Front of Store","Front of Store","Front of Store",null,null,null,null,null,{"$f":"COUNTIF(MON_6[[#This Row],[7:00 AM]:[7:00 PM]],\"*\")","v":9}]
[]
[null,"SAT",{"$f":"C48+1","v":"2019-07-06"}]
[null,"ID NO.","EMPLOYEE NAME","7:00 AM","8:00 AM","9:00 AM","10:00 AM","11:00 AM","12:00 PM","1:00 PM","2:00 PM","3:00 PM","4:00 PM","5:00 PM","6:00 PM","7:00 PM","– OFF –","TOTAL"]
[null,100012,"Kelly B.","Pastries","Pastries","Pastries",null,null,null,null,null,null,null,null,null,null,null,{"$f":"COUNTIF(MON_7[[#This Row],[7:00 AM]:[7:00 PM]],\"*\")","v":3}]
[null,100045,"Cindy Y.","Cakes","Cakes","Cakes",null,null,null,null,null,null,null,null,null,null,null,{"$f":"COUNTIF(MON_7[[#This Row],[7:00 AM]:[7:00 PM]],\"*\")","v":3}]
[null,100007,"Nathan M.",null,null,null,"Pies","Pies","Pies","Pies",null,null,null,null,null,null,null,{"$f":"COUNTIF(MON_7[[#This Row],[7:00 AM]:[7:00 PM]],\"*\")","v":4}]
[null,100036,"Jenn C.",null,null,null,null,null,null,"Decoration",null,null,null,null,null,null,null,{"$f":"COUNTIF(MON_7[[#This Row],[7:00 AM]:[7:00 PM]],\"*\")","v":1}]
[null,100002,"Daniel H.",null,null,"Manager","Manager","Manager","Manager","Manager",null,null,null,null,null,null,null,{"$f":"COUNTIF(MON_7[[#This Row],[7:00 AM]:[7:00 PM]],\"*\")","v":5}]
[null,100089,"Lucas J.","Bread","Bread","Bread","Bread",null,null,null,null,null,null,null,null,null,null,{"$f":"COUNTIF(MON_7[[#This Row],[7:00 AM]:[7:00 PM]],\"*\")","v":4}]
[null,100046,"Steve J.",null,null,null,null,"Front of store","Front of store","Front of store",null,null,null,null,null,null,null,{"$f":"COUNTIF(MON_7[[#This Row],[7:00 AM]:[7:00 PM]],\"*\")","v":3}]
[null,100055,"Laurie O.","Front of store","Front of store","Front of store","Front of store","Front of store","Front of Store","Front of Store",null,null,null,null,null,null,null,{"$f":"COUNTIF(MON_7[[#This Row],[7:00 AM]:[7:00 PM]],\"*\")","v":7}]
[]
[null,"SUN",{"$f":"C59+1","v":"2019-07-07"}]
[null,"ID NO.","EMPLOYEE NAME","7:00 AM","8:00 AM","9:00 AM","10:00 AM","11:00 AM","12:00 PM","1:00 PM","2:00 PM","3:00 PM","4:00 PM","5:00 PM","6:00 PM","7:00 PM","– OFF –","TOTAL"]
[null,100012,"Kelly B.","Pastries","Pastries","Pastries",null,null,null,null,null,null,null,null,null,null,null,{"$f":"COUNTIF(MON_8[[#This Row],[7:00 AM]:[7:00 PM]],\"*\")","v":3}]
[null,100045,"Cindy Y.","Cakes","Cakes","Cakes",null,null,null,null,null,null,null,null,null,null,null,{"$f":"COUNTIF(MON_8[[#This Row],[7:00 AM]:[7:00 PM]],\"*\")","v":3}]
[null,100007,"Nathan M.",null,null,null,"Pies","Pies","Pies","Pies",null,null,null,null,null,null,null,{"$f":"COUNTIF(MON_8[[#This Row],[7:00 AM]:[7:00 PM]],\"*\")","v":4}]
[null,100036,"Jenn C.",null,null,null,null,null,null,"Decoration",null,null,null,null,null,null,null,{"$f":"COUNTIF(MON_8[[#This Row],[7:00 AM]:[7:00 PM]],\"*\")","v":1}]
[null,100002,"Daniel H.",null,null,"Manager","Manager","Manager","Manager","Manager",null,null,null,null,null,null,null,{"$f":"COUNTIF(MON_8[[#This Row],[7:00 AM]:[7:00 PM]],\"*\")","v":5}]
[null,100089,"Lucas J.","Bread","Bread","Bread","Bread",null,null,null,null,null,null,null,null,null,null,{"$f":"COUNTIF(MON_8[[#This Row],[7:00 AM]:[7:00 PM]],\"*\")","v":4}]
[null,100046,"Steve J.",null,null,null,null,"Front of store","Front of store","Front of store",null,null,null,null,null,null,null,{"$f":"COUNTIF(MON_8[[#This Row],[7:00 AM]:[7:00 PM]],\"*\")","v":3}]
[null,100055,"Laurie O.","Front of store","Front of store","Front of store","Front of store","Front of store","Front of Store","Front of Store",null,null,null,null,null,null,null,{"$f":"COUNTIF(MON_8[[#This Row],[7:00 AM]:[7:00 PM]],\"*\")","v":7}]
[]
[null,"CLICK HERE TO CREATE EMPLOYEE SCHEDULE TEMPLATES IN SMARTSHEET"]